fUSD/lending_fUSD_20240324
["ID","MTS","AMOUNT","RATE_DAILY","PERIOD"]
[320333649,1711303840078,-151.0,0.000179,2]
[320333650,1711303840088,-151.0,0.000179,2]
[320333651,1711303840097,-151.0,0.000179,2]
[320333652,1711303840107,-151.0,0.000179,2]
[320333653,1711303840117,-151.0,0.000179,2]
[320333654,1711303840126,-151.0,0.000179,2]
[320333655,1711303840135,-151.0,0.000179,2]
[320333656,1711303840144,-151.0,0.000179,2]
[320333657,1711303840154,-170.409169,0.000179,2]
[320333658,1711303840162,-151.0,0.000179,2]
[320333659,1711303840172,-170.409169,0.000179,2]
[320333660,1711303840181,-151.0,0.000179,2]
[320333661,1711303840190,-151.0,0.000179,2]
[320333662,1711303840199,-151.0,0.000179,2]
[320333663,1711303840208,-152.257601,0.000179,2]
[320333664,1711303840218,-151.0,0.000179,2]
[320333665,1711303840227,-151.0,0.000179,2]
[320333666,1711303840236,-151.0,0.000179,2]
[320333667,1711303840246,-151.0,0.000179,2]
[320333668,1711303840255,-151.0,0.000179,2]
[320333669,1711303840264,-151.0,0.000179,2]
[320333670,1711303840274,-212.735885,0.000179,2]
[320333671,1711303840283,-322.026784,0.000179,2]
[320333672,1711303840292,-322.026784,0.000179,2]
[320333673,1711303840302,-151.573516,0.000179,2]
[320333674,1711303840311,-151.573516,0.000179,2]
[320333675,1711303840321,-151.0,0.000179,2]
[320333676,1711303840332,-684.031459,0.000179,2]
[320333677,1711303840341,-684.031459,0.000179,2]
[320333678,1711303840350,-361.808208,0.000179,2]
[320333679,1711303840360,-361.808208,0.000179,2]
[320333680,1711303840369,-151.0,0.000179,2]
[320333681,1711303840378,-151.0,0.000179,2]
[320333682,1711303840387,-201.172937,0.000179,2]
[320333683,1711303840396,-201.172937,0.000179,2]
[320333684,1711303840405,-189.868752,0.000179,2]
[320333685,1711303840415,-189.868752,0.000179,2]
[320333686,1711303840424,-151.0,0.000179,2]
[320333687,1711303840433,-330.036978,0.000179,2]
[320333688,1711303840442,-151.0,0.000179,2]
[320333689,1711303840452,-330.036978,0.000179,2]
[320333690,1711303840461,-151.0,0.000179,2]
[320333691,1711303840470,-151.0,0.000179,2]
[320333692,1711303840479,-151.0,0.000179,2]
[320333693,1711303840488,-1124.318627,0.000179,2]
[320333694,1711303840498,-1124.318627,0.000179,2]
[320333695,1711303840507,-151.0,0.000179,2]
[320333696,1711303840516,-466.324357,0.000179,2]
[320333697,1711303840525,-466.324357,0.000179,2]
[320333698,1711303840534,-217.942591,0.000179,2]
[320333699,1711303840543,-646.2164133,0.000179,2]
[320333700,1711303840553,-217.942591,0.000179,2]
[320333701,1711303840562,-151.0,0.000179,2]
[320333702,1711303840571,-213.05015,0.000179,2]
[320333703,1711303840582,-213.05015,0.000179,2]
[320333704,1711303840591,-151.0,0.000179,2]
[320333705,1711303840600,-151.0,0.000179,2]
[320333706,1711303840609,-151.0,0.000179,2]
[320333707,1711303840617,-151.0,0.000179,2]
[320333708,1711303840626,-151.0,0.000179,2]
[320333709,1711303840635,-151.0,0.000179,2]
[320333710,1711303840644,-1687.07908121,0.000179,2]
[320333711,1711303840653,-151.670005,0.000179,2]
[320333712,1711303840662,-151.0,0.000179,2]
[320333713,1711303840671,-151.0,0.000179,2]
[320333714,1711303840680,-151.0,0.000179,2]
[320333715,1711303840689,-1213.37967816,0.000179,2]
[320333716,1711303840698,-151.0,0.000179,2]
[320333717,1711303840706,-1213.37967798,0.000179,2]
[320333718,1711303840715,-427.10199014,0.000179,2]
[320333719,1711303840724,-1213.37967798,0.000179,2]
[320333720,1711303840733,-346.8714874,0.000179,2]
[320333721,1711303840743,-1213.37967798,0.000179,2]
[320333722,1711303840752,-151.0,0.000179,2]
[320333723,1711303840761,-917.55986288,0.000179,2]
[320333724,1711303840769,-151.0,0.000179,2]
[320333725,1711303840778,-1213.37967798,0.000179,2]
[320333726,1711303840787,-183.08465362,0.000179,2]
[320333727,1711303840796,-1213.37967798,0.000179,2]
[320333728,1711303840805,-151.0,0.000179,2]
[320333729,1711303840814,-1213.37967798,0.000179,2]
[320333730,1711303840823,-1213.37967798,0.000179,2]
[320333731,1711303840833,-193.14681632,0.000179,3]
[320333732,1711303840842,-1213.37967798,0.000179,2]
[320333733,1711303840851,-151.0,0.000179,2]
[320333734,1711303840860,-1213.37967798,0.000179,2]
[320333735,1711303840869,-151.0,0.000179,2]
[320333736,1711303840878,-151.0,0.000179,2]
[320333737,1711303840887,-663.918814,0.000179,2]
[320333738,1711303840898,-1213.37967798,0.000179,2]
[320333739,1711303840907,-55962.54034083,0.0001798,2]
[320333740,1711303840916,-151.0,0.00017988,2]
[320333741,1711303840925,-151.0,0.00017988,2]
[320333742,1711303840934,-151.0,0.00017988,2]
[320333743,1711303840943,-151.0,0.00017988,2]
[320333744,1711303840952,-151.0,0.00017988,2]
[320333745,1711303840961,-151.733628,0.00017988,2]
[320333746,1711303840970,-151.0,0.00017988,2]
[320333747,1711303840979,-168.569531,0.00017988,2]
[320333748,1711303840987,-151.0,0.00017988,2]
[320333749,1711303840996,-151.0,0.00017988,2]
[320333750,1711303841005,-151.0,0.00017988,2]
[320333751,1711303841014,-151.0,0.00017988,2]
[320333752,1711303841023,-151.0,0.00017988,2]
[320333753,1711303841036,-151.653485,0.00017988,2]
[320333754,1711303841045,-151.0,0.00017988,2]
[320333755,1711303841054,-151.0,0.00017988,2]
[320333756,1711303841063,-151.0,0.00017988,2]
[320333757,1711303841074,-264.402647,0.00017988,2]
[320333758,1711303841084,-151.0,0.00017988,2]
[320333759,1711303841093,-151.0,0.00017988,2]
[320333760,1711303841102,-151.0,0.00017988,2]
[320333761,1711303841113,-151.0,0.00017988,2]
[320333762,1711303841123,-151.0,0.00017988,2]
[320333763,1711303841132,-151.0,0.00017988,2]
[320333764,1711303841141,-151.0,0.00017988,2]
[320333765,1711303841150,-151.0,0.00017988,2]
[320333766,1711303841159,-151.0,0.00017988,2]
[320333767,1711303841168,-151.446999,0.00017988,2]
[320333768,1711303841177,-151.0,0.00017988,2]
[320333769,1711303841186,-151.0,0.00017988,2]
[320333770,1711303841195,-151.0,0.00017988,2]
[320333771,1711303841204,-151.0,0.00017988,2]
[320333772,1711303841213,-245.19,0.00017988,2]
[320333773,1711303841222,-245.19,0.00017988,2]
[320333774,1711303841231,-245.19,0.00017988,2]
[320333775,1711303841241,-245.19,0.00017988,2]
[320333776,1711303841250,-151.0,0.00017988,2]
[320333777,1711303841259,-151.0,0.00017988,2]
[320333778,1711303841268,-151.0,0.00017988,2]
[320333779,1711303841277,-151.0,0.00017988,2]
[320333780,1711303841286,-151.0,0.00017988,2]
[320333781,1711303841295,-151.0,0.00017988,2]
[320333782,1711303841304,-151.0,0.00017988,2]
[320333783,1711303841313,-151.0,0.00017988,2]
[320333784,1711303841322,-156.843687,0.00017988,2]
[320333785,1711303841332,-156.843687,0.00017988,2]
[320333786,1711303841341,-156.843687,0.00017988,2]
[320333787,1711303841351,-156.843687,0.00017988,2]
[320333788,1711303841360,-151.0,0.00017988,2]
[320333789,1711303841370,-151.0,0.00017988,2]
[320333790,1711303841379,-151.0,0.00017988,2]
[320333791,1711303841387,-59.86078315,0.00017988,2]
[320333792,1711303841404,-91.13921685,0.00017988,2]
[320333793,1711303841413,-151.0,0.00017988,2]
[320333794,1711303841422,-151.0,0.00017988,2]
[320333795,1711303841431,-1203.541575,0.00017988,2]
[320333796,1711303841440,-1203.541575,0.00017988,2]
[320333797,1711303841449,-896.70107915,0.00017988,2]
[320333798,1711303841494,-306.84049585,0.00017988,2]
[320333799,1711303841503,-1203.541575,0.00017988,2]
[320333800,1711303841512,-151.0,0.00017988,2]
[320333801,1711303841521,-151.0,0.00017988,2]
[320333802,1711303841530,-151.0,0.00017988,2]
[320333803,1711303841539,-151.0,0.00017988,2]
[320333804,1711303841549,-151.0,0.00017988,2]
[320333805,1711303841559,-151.0,0.00017988,2]
[320333806,1711303841568,-151.0,0.00017988,2]
[320333807,1711303841577,-1607.649025,0.00017988,2]
[320333808,1711303841588,-1607.649025,0.00017988,2]
[320333809,1711303841597,-1607.649025,0.00017988,2]
[320333810,1711303841606,-1607.649025,0.00017988,2]
[320333811,1711303841615,-151.0,0.00017988,2]
[320333812,1711303841624,-151.0,0.00017988,2]
[320333813,1711303841633,-292.160475,0.00017988,2]
[320333814,1711303841642,-151.0,0.00017988,2]
[320333815,1711303841651,-151.0,0.00017988,2]
[320333816,1711303841660,-151.0,0.00017988,2]
[320333817,1711303841669,-297.060077,0.00017988,2]
[320333818,1711303841678,-151.0,0.00017988,2]
[320333819,1711303841687,-151.0,0.00017988,2]
[320333820,1711303841697,-151.0,0.00017988,2]
[320333821,1711303841706,-151.0,0.00017988,2]
[320333822,1711303841715,-151.0,0.00017988,2]
[320333823,1711303841724,-151.0,0.00017988,2]
[320333824,1711303841735,-151.0,0.00017988,2]
[320333825,1711303841744,-151.0,0.00017988,2]
[320333826,1711303841753,-241.743814,0.00017988,2]
[320333827,1711303841762,-151.0,0.00017988,2]
[320333828,1711303841771,-151.0,0.00017988,2]
[320333829,1711303841780,-170.409169,0.00017988,2]
[320333830,1711303841789,-170.409169,0.00017988,2]
[320333831,1711303841798,-151.0,0.00017988,2]
[320333832,1711303841806,-151.0,0.00017988,2]
[320333833,1711303841815,-170.409169,0.00017988,2]
[320333834,1711303841826,-170.409169,0.00017988,2]
[320333835,1711303841836,-151.0,0.00017988,2]
[320333836,1711303841845,-151.0,0.00017988,2]
[320333837,1711303841857,-151.0,0.00017988,2]
[320333838,1711303841866,-151.0,0.00017988,2]
[320333839,1711303841877,-281.621109,0.00017988,2]
[320333840,1711303841886,-151.0,0.00017988,2]
[320333841,1711303841895,-151.0,0.00017988,2]
[320333842,1711303841905,-151.0,0.00017988,2]
[320333843,1711303841914,-151.0,0.00017988,2]
[320333844,1711303841923,-151.0,0.00017988,2]
[320333845,1711303841932,-151.0,0.00017988,2]
[320333846,1711303841941,-151.0,0.00017988,2]
[320333847,1711303841950,-151.0,0.00017988,2]
[320333848,1711303841960,-151.0,0.00017988,2]
[320333849,1711303841969,-151.0,0.00017988,2]
[320333850,1711303841978,-151.0,0.00017988,2]
[320333851,1711303841987,-151.0,0.00017988,2]
[320333852,1711303841995,-151.0,0.00017988,2]
[320333853,1711303842005,-151.0,0.00017988,2]
[320333854,1711303842014,-151.0,0.00017988,2]
[320333855,1711303842023,-151.0,0.00017988,2]
[320333856,1711303842035,-151.0,0.00017988,2]
[320333857,1711303842044,-322.026784,0.00017988,2]
[320333858,1711303842054,-322.026784,0.00017988,2]
[320333859,1711303842063,-322.026784,0.00017988,2]
[320333860,1711303842075,-322.026784,0.00017988,2]
[320333861,1711303842086,-322.026784,0.00017988,2]
[320333862,1711303842095,-322.026784,0.00017988,2]
[320333863,1711303842105,-151.573516,0.00017988,2]
[320333864,1711303842115,-151.573516,0.00017988,2]
[320333865,1711303842124,-151.573516,0.00017988,2]
[320333866,1711303842133,-151.573516,0.00017988,2]
[320333867,1711303842142,-151.573516,0.00017988,2]
[320333868,1711303842151,-151.573516,0.00017988,2]
[320333869,1711303842160,-240.104446,0.00017988,2]
[320333870,1711303842169,-684.031459,0.00017988,2]
[320333871,1711303842179,-684.031459,0.00017988,2]
[320333872,1711303842188,-684.031459,0.00017988,2]
[320333873,1711303842197,-684.031459,0.00017988,2]
[320333874,1711303842207,-684.031459,0.00017988,2]
[320333875,1711303842216,-684.031459,0.00017988,2]
[320333876,1711303842226,-361.808208,0.00017988,2]
[320333877,1711303842235,-361.808208,0.00017988,2]
[320333878,1711303842244,-361.808208,0.00017988,2]
[320333879,1711303842254,-361.808208,0.00017988,2]
[320333880,1711303842263,-361.808208,0.00017988,2]
[320333881,1711303842272,-361.808208,0.00017988,2]
[320333882,1711303842281,-154.421186,0.00017988,2]
[320333883,1711303842290,-151.0,0.00017988,2]
[320333885,1711303842300,-151.0,0.00017988,2]
[320333886,1711303842309,-151.0,0.00017988,2]
[320333888,1711303842318,-201.172937,0.00017988,2]
[320333889,1711303842327,-201.172937,0.00017988,2]
[320333890,1711303842338,-201.172937,0.00017988,2]
[320333891,1711303842347,-201.172937,0.00017988,2]
[320333892,1711303842357,-201.172937,0.00017988,2]
[320333894,1711303842365,-201.172937,0.00017988,2]
[320333896,1711303842375,-189.868752,0.00017988,2]
[320333897,1711303842384,-189.868752,0.00017988,2]
[320333898,1711303842394,-189.868752,0.00017988,2]
[320333899,1711303842403,-189.868752,0.00017988,2]
[320333900,1711303842413,-189.868752,0.00017988,2]
[320333903,1711303842422,-189.868752,0.00017988,2]
[320333904,1711303842431,-151.0,0.00017988,2]
[320333905,1711303842440,-151.0,0.00017988,2]
[320333906,1711303842449,-151.0,0.00017988,2]
[320333907,1711303842458,-151.0,0.00017988,2]
[320333908,1711303842467,-330.036978,0.00017988,2]
[320333909,1711303842476,-330.036978,0.00017988,2]
[320333910,1711303842485,-330.036978,0.00017988,2]
[320333911,1711303842494,-330.036978,0.00017988,2]
[320333912,1711303842502,-330.036978,0.00017988,2]
[320333913,1711303842511,-330.036978,0.00017988,2]
[320333914,1711303842520,-151.0,0.00017988,2]
[320333915,1711303842529,-151.0,0.00017988,2]
[320333916,1711303842538,-151.0,0.00017988,2]
[320333917,1711303842547,-151.0,0.00017988,2]
[320333918,1711303842556,-151.0,0.00017988,2]
[320333919,1711303842566,-151.0,0.00017988,2]
[320333920,1711303842576,-151.0,0.00017988,2]
[320333921,1711303842587,-151.0,0.00017988,2]
[320333922,1711303842596,-159.36385,0.00017988,2]
[320333923,1711303842606,-1124.318627,0.00017988,2]
[320333924,1711303842615,-1124.318627,0.00017988,2]
[320333925,1711303842624,-1124.318627,0.00017988,2]
[320333926,1711303842634,-1124.318627,0.00017988,2]
[320333927,1711303842643,-1124.318627,0.00017988,2]
[320333928,1711303842652,-1124.318627,0.00017988,2]
[320333929,1711303842661,-151.0,0.00017988,2]
[320333930,1711303842670,-151.0,0.00017988,2]
[320333931,1711303842680,-151.0,0.00017988,2]
[320333932,1711303842691,-466.324357,0.00017988,2]
[320333933,1711303842700,-466.324357,0.00017988,2]
[320333934,1711303842710,-466.324357,0.00017988,2]
[320333935,1711303842719,-466.324357,0.00017988,2]
[320333936,1711303842729,-466.324357,0.00017988,2]
[320333937,1711303842739,-466.324357,0.00017988,2]
[320333938,1711303842748,-217.942591,0.00017988,2]
[320333939,1711303842757,-217.942591,0.00017988,2]
[320333940,1711303842767,-217.942591,0.00017988,2]
[320333941,1711303842776,-217.942591,0.00017988,2]
[320333942,1711303842785,-217.942591,0.00017988,2]
[320333943,1711303842794,-217.942591,0.00017988,2]
[320333944,1711303842803,-151.0,0.00017988,2]
[320333945,1711303842813,-151.0,0.00017988,2]
[320333946,1711303842822,-151.0,0.00017988,2]
[320333947,1711303842832,-213.05015,0.00017988,2]
[320333948,1711303842840,-213.05015,0.00017988,2]
[320333949,1711303842850,-213.05015,0.00017988,2]
[320333950,1711303842859,-213.05015,0.00017988,2]
[320333951,1711303842868,-213.05015,0.00017988,2]
[320333952,1711303842878,-213.05015,0.00017988,2]
[320333953,1711303842887,-151.0,0.00017988,2]
[320333954,1711303842896,-151.0,0.00017988,2]
[320333955,1711303842905,-18345.0821797,0.00017988,2]
[320333956,1711303842914,-19877.6925742,0.00017988,2]
[320333957,1711303842923,-151.0,0.00017988,2]
[320333958,1711303842932,-151.0,0.00017988,2]
[320333959,1711303842941,-151.0,0.00017988,2]
[320333961,1711303842950,-151.0,0.00017988,2]
[320333963,1711303842959,-151.0,0.00017988,2]
[320333966,1711303842975,-151.0,0.00017988,2]
[320333967,1711303842985,-152.016966,0.00017988,2]
[320333969,1711303842994,-151.0,0.00017988,2]
[320333971,1711303843003,-151.0,0.00017988,2]
[320333973,1711303843012,-151.0,0.00017988,2]
[320333975,1711303843022,-151.0,0.00017988,2]
[320333977,1711303843033,-151.0,0.00017988,2]
[320333979,1711303843043,-151.0,0.00017988,2]
[320333980,1711303843052,-151.0,0.00017988,2]
[320333982,1711303843062,-151.0,0.00017988,2]
[320333984,1711303843070,-151.0,0.00017988,2]
[320333986,1711303843080,-151.0,0.00017988,2]
[320333988,1711303843089,-220.906018,0.00017988,2]
[320333990,1711303843098,-151.0,0.00017988,2]
[320333992,1711303843107,-151.0,0.00017988,2]
[320333993,1711303843117,-6786.94932121,0.00017988,2]
[320333997,1711303843151,-352.679772,0.00017988,2]
[320333999,1711303843168,-688.5,0.00017988,2]
[320334001,1711303843179,-46652.92940988,0.00017988,2]
[320334004,1711303843191,-522.95211112,0.00017988,2]
[320334007,1711303843214,-663.918814,0.000179,2]
[320334009,1711303843223,-200.86965724,0.00017988,2]
[320334011,1711303843234,-83640.62720795,0.00017988,2]
[320334012,1711303843243,-150445.1321589,0.00017988,2]
[320334014,1711303843253,-151.0,0.00017988,2]
[320334016,1711303843262,-151.0,0.00017988,2]
[320334018,1711303843271,-152.323295,0.00017988,2]
[320334020,1711303843281,-151.0,0.00017988,2]
[320334022,1711303843290,-151.0,0.00017988,2]
[320334024,1711303843300,-151.0,0.00017988,2]
[320334026,1711303843309,-151.0,0.00017988,2]
[320334035,1711303843501,-151.0,0.00017988,2]
[320334037,1711303843511,-151.0,0.00017988,2]
[320334039,1711303843521,-151.0,0.00017988,2]
[320334041,1711303843530,-663.918814,0.00017988,2]
[320334043,1711303843539,-151.0,0.00017988,2]
[320334045,1711303843548,-663.918814,0.00017988,2]
[320334047,1711303843557,-3664.9506736,0.00017989,2]
[320334049,1711303843567,-841.2439176,0.00017989,2]
[320334051,1711303843576,-2200.0,0.0001799,2]
[320334054,1711303843590,-151.0,0.0001799,2]
[320334056,1711303843600,-151.0,0.0001799,2]
[320334058,1711303843609,-151.0,0.0001799,2]
[320334060,1711303843618,-663.918814,0.0001799,2]
[320334062,1711303843627,-559.38958846,0.00017997,2]
[320334064,1711303843636,-155.0,0.00017997,2]
[320334066,1711303843646,-679.45509569,0.00017997,2]
[320334068,1711303843655,-164.90960857,0.00017997,2]
[320334070,1711303843664,-151.0,0.00017997,2]
[320334071,1711303843674,-250.200275,0.00017997,2]
[320334073,1711303843683,-294.6291619,0.00017998,2]
[320334076,1711303843693,-3039.23585699,0.00017999,3]
[320334078,1711303843702,-300.0,0.00017999,2]
[320334080,1711303843712,-300.0,0.00017999,2]
[320334082,1711303843721,-300.0,0.00017999,2]
[320334084,1711303843731,-300.0,0.00017999,2]
[320334085,1711303843742,-300.0,0.00017999,2]
[320334087,1711303843751,-300.0,0.00017999,2]
[320334089,1711303843761,-300.0,0.00017999,2]
[320334092,1711303843770,-250.0,0.00018,2]
[320334094,1711303843780,-1109.2633204,0.00018,2]
[320334096,1711303843789,-900.0,0.00018,2]
[320334098,1711303843798,-51925.35955411,0.00018,2]
[320334101,1711303843820,-965.83846625,0.00018,2]
[320334150,1711303844265,-254.17189,0.000179,2]
[320334152,1711303844274,-507.67424928,0.00017988,2]
[320334154,1711303844286,-156.24456472,0.00017988,2]
[320334156,1711303844295,-663.918814,0.00017988,2]
[320334158,1711303844304,-377.54259566,0.0001799,2]
[320334161,1711303844316,-286.37621834,0.0001799,2]
[320334163,1711303844325,-805.27397322,0.00018,2]
[320334165,1711303844340,-1603.97968,0.00018,2]
[320334169,1711303844368,-771636.5046314,0.00018,2]
[320334171,1711303844380,-286.015,0.00018,2]
[320334174,1711303844399,-1059.0689981,0.00018,2]
[320334177,1711303844410,-286.54779803,0.00018,2]
[320334179,1711303844426,-703.5,0.00018,2]
[320334181,1711303844437,-651.15386033,0.00018,2]
[320334184,1711303844448,-436.10138277,0.00018,2]
[320334186,1711303844459,-885.17222874,0.00018,2]
[320334189,1711303844478,-281.144,0.00018,2]
[320334192,1711303844498,-254.25,0.00018,2]
[320334256,1711303845094,-331.12323866,0.000179,2]
[320334258,1711303845106,-882.25643932,0.000179,2]
[320334260,1711303845116,-4544.03518469,0.00018,2]
[320334262,1711303845129,-632.52348141,0.00018,2]
[320334263,1711303845140,-2542.98175511,0.00018,2]
[320334264,1711303845153,-87981.05191117,0.00018,2]
[320334265,1711303845220,-8602.26871811,0.00018,2]
[320334266,1711303845232,-9133.2759338,0.00018,2]
[320334267,1711303845244,-296.18044634,0.00018,2]
[320334269,1711303845255,-2875.3445252,0.00018,2]
[320334271,1711303845267,-6957.00129753,0.00018,2]
[320334272,1711303845347,-2936.12177508,0.00018,2]
[320334273,1711303845358,-114387.56375188,0.00018,2]
[320334274,1711303845382,-695.70501,0.00018,2]
[320334275,1711303845394,-2202.07982579,0.00018,2]
[320334288,1711303845953,-622.97992151,0.00017899,2]
[320334289,1711303845964,-1189.89658643,0.00017899,2]
[320334290,1711303845975,-462.89936934,0.00017899,2]
[320334291,1711303845987,-1463.22545968,0.00017899,2]
[320334292,1711303845998,-817.0,0.00018,2]
[320334293,1711303846007,-4719.77454032,0.00018,2]
[320334294,1711303846018,-2019.0,0.00018,2]
[320334295,1711303846120,-833.92580882,0.00018,2]
[320334296,1711303846131,-2713.31100907,0.00018,2]
[320334297,1711303846143,-1064.7,0.00018,2]
[320334298,1711303846158,-292.38825239,0.00018,2]
[320334299,1711303846169,-425.400001,0.00018,2]
[320334300,1711303846180,-2733.97298494,0.00018,2]
[320334301,1711303846191,-4525.78722793,0.00018,2]
[320334302,1711303846203,-759.097132,0.00018,2]
[320334303,1711304285403,-2000.0,0.00015103,2]
[320334304,1711304286124,-1739.00133696,0.00015103,2]
[320334305,1711304286146,-260.99866304,0.00015104,2]
[320334306,1711304287135,-545.18894034,0.00015104,2]
[320334307,1711304287158,-768.9,0.0001511,2]
[320334308,1711304287181,-250.0,0.00016839,2]
[320334309,1711304287204,-435.91105966,0.00016871,2]
[320334310,1711304287446,-1480.52894034,0.00016871,2]
[320334311,1711304287471,-262.23,0.00016903,2]
[320334312,1711304287494,-257.24105966,0.00016959,2]
[320334313,1711304287775,-502.75894034,0.00016959,2]
[320334314,1711304291548,1000.0,0.00016932,2]
[320334315,1711304345250,497.24105966,0.00016932,2]
[320334316,1711304345274,533.50853197,0.00016932,2]
[320334317,1711304357171,364.11937944,0.00014398,2]
[320334318,1711304359249,523.10382905,0.00016932,2]
[320334319,1711304361652,406.30770755,0.00016424,2]
[320334320,1711304369748,172.96055199,0.00016932,2]
[320334321,1711304369781,149.11649182,0.00016932,2]
[320334322,1711304375668,333.13845843,0.00016424,2]
[320334323,1711304378458,1517.74504975,0.00016932,2]
[320334324,1711304378478,2000.0,0.00016932,2]
[320334325,1711304378498,2000.0,0.00016932,2]
[320334326,1711304378519,2000.0,0.00016932,2]
[320334327,1711304378546,2000.0,0.00016932,2]
[320334328,1711304378565,2000.0,0.00016932,2]
[320334329,1711304378584,2000.0,0.00016932,2]
[320334330,1711304378603,1142.23,0.00016932,2]
[320334331,1711304949339,-150.0,0.00014627,2]
[320334332,1711304972132,-584.675368,0.00014554,2]
[320334333,1711304972153,-1943.308732,0.00014627,2]
[320334347,1711305031914,-486.56842713,0.00014601,2]
[320334348,1711305031930,-742.7203002,0.00014601,2]
[320334349,1711305031939,-345.0,0.00014601,2]
[320334350,1711305031949,-691.94603015,0.00014602,2]
[320334351,1711305031977,-3047.05530681,0.00014602,2]
[320334352,1711305031986,-862.75,0.00014603,2]
[320334353,1711305031995,-168.0,0.00014626,2]
[320334354,1711305032005,-150.0,0.00014626,2]
[320334355,1711305032015,-2628.07605501,0.00014627,2]
[320334356,1711305032029,-332.63,0.00014627,2]
[320334357,1711305032041,-2738.06733,0.00014627,2]
[320334358,1711305032057,-3772.28496872,0.00014627,2]
[320334359,1711305032069,-570.71244312,0.00014627,2]
[320334369,1711305032422,-616.84821246,0.00014627,2]
[320334370,1711305032431,-191.0,0.00016089,2]
[320334371,1711305032440,-250.0,0.00016258,2]
[320334372,1711305032449,-210.23,0.00016345,2]
[320334373,1711305032458,-732.00865247,0.00016359,2]
[320334377,1711305037823,-267.99134753,0.00016359,2]
[320334378,1711305037834,-82.00865247,0.00016438,2]
[320334403,1711305039812,-1749.46483334,0.00016438,2]
[320334404,1711305039873,-1538.7074705,0.00016438,2]
[320334405,1711305039988,-867.19582259,0.00016438,2]
[320334406,1711305040001,-8782.27982239,0.00016438,2]
[320334410,1711305042804,-5932.74339871,0.00016438,2]
[320334411,1711305042814,-639.87,0.00016514,2]
[320334412,1711305042823,-1277.29,0.00016539,2]
[320334413,1711305042834,-1000.0,0.00016555,2]
[320334414,1711305042844,-262.26,0.00016586,2]
[320334415,1711305042854,-250.0,0.00016586,2]
[320334416,1711305042866,-862.75,0.00016867,2]
[320334417,1711305042877,-164.82,0.00016895,2]
[320334418,1711305042888,-150.0,0.000169,2]
[320334419,1711305042898,-82936.37263779,0.00016932,2]
[320334420,1711305042908,-322.07704381,0.00016932,2]
[320334421,1711305042918,-163.7367,0.0001738,2]
[320334422,1711305042929,-201.214346,0.00017534,2]
[320334423,1711305042939,-300.0,0.00017601,2]
[320334424,1711305042949,-172.18,0.00017716,2]
[320334425,1711305042959,-8705.70827465,0.000178,2]
[320334426,1711305042969,-714.46167176,0.000178,2]
[320334427,1711305042981,-164.64,0.00017808,10]
[320334428,1711305042991,-163.2860553,0.0001782,2]
[320334429,1711305043001,-3000.0,0.0001782,2]
[320334430,1711305043010,-800.0,0.00017855,2]
[320334431,1711305043019,-152.379505,0.00017856,2]
[320334432,1711305043028,-800.0,0.00017856,2]
[320334433,1711305043038,-7146.13761558,0.000179,2]
[320334434,1711305043047,-7500.0,0.000179,2]
[320334435,1711305043057,-79114.3354974,0.000179,2]